[Event "*** Titled Tuesday Blitz"]
[Site "Chess.com"]
[Date "2021.02.09"]
[Round "5"]
[White "onnoelgersma"]
[Black "ChampStan"]
[Result "0-1"]
[WhiteElo "2457"]
[BlackElo "2233"]
[TimeControl "180+1"]
[EndTime "10:58:29 PST"]
[Termination "ChampStan won on time"]

1. e4 {[%clk 0:03:00]} 1... e5 {[%clk 0:02:58]} 2. Nf3 {[%clk 0:02:58.7]} 2...
Nc6 {[%clk 0:02:56.6]} 3. Bb5 {[%clk 0:02:58.8]} 3... Nf6 {[%clk 0:02:55.6]} 4.
Nc3 {[%clk 0:02:58.4]} 4... Nd4 {[%clk 0:02:54.9]} 5. Bc4 {[%clk 0:02:57.5]}
5... Bc5 {[%clk 0:02:28]} 6. O-O {[%clk 0:02:56]} 6... d6 {[%clk 0:02:24.2]} 7.
h3 {[%clk 0:02:55.6]} 7... O-O {[%clk 0:02:23.6]} 8. d3 {[%clk 0:02:55.7]} 8...
Be6 {[%clk 0:02:21]} 9. Bg5 {[%clk 0:02:50]} 9... Bxc4 {[%clk 0:02:15.5]} 10.
dxc4 {[%clk 0:02:47.7]} 10... c6 {[%clk 0:02:15]} 11. Qd3 {[%clk 0:02:35.8]}
11... h6 {[%clk 0:02:08.6]} 12. Bxf6 {[%clk 0:02:33.4]} 12... Qxf6 {[%clk
0:02:08.2]} 13. Nxd4 {[%clk 0:02:33.8]} 13... Bxd4 {[%clk 0:02:07.9]} 14. Nd1
{[%clk 0:02:28.3]} 14... Rad8 {[%clk 0:01:51.9]} 15. c3 {[%clk 0:02:27.7]} 15...
Bb6 {[%clk 0:01:52.4]} 16. a4 {[%clk 0:02:27.3]} 16... a6 {[%clk 0:01:51.1]} 17.
a5 {[%clk 0:02:18.2]} 17... Ba7 {[%clk 0:01:51.3]} 18. Ne3 {[%clk 0:02:18.7]}
18... Qe6 {[%clk 0:01:34.1]} 19. Nf5 {[%clk 0:02:16.3]} 19... Kh7 {[%clk
0:01:30.6]} 20. Qf3 {[%clk 0:02:04.1]} 20... g6 {[%clk 0:01:28.6]} 21. Ng3
{[%clk 0:01:54.1]} 21... Qxc4 {[%clk 0:01:17.8]} 22. Rad1 {[%clk 0:01:51.8]}
22... Qe6 {[%clk 0:01:16.2]} 23. h4 {[%clk 0:01:50.5]} 23... d5 {[%clk
0:01:04.1]} 24. h5 {[%clk 0:01:49.5]} 24... Kg7 {[%clk 0:01:00.2]} 25. Kh2
{[%clk 0:01:38.3]} 25... Qf6 {[%clk 0:00:53.7]} 26. Qg4 {[%clk 0:01:33.4]} 26...
Qf4 {[%clk 0:00:52.1]} 27. Qxf4 {[%clk 0:01:12.6]} 27... exf4 {[%clk 0:00:49.7]}
28. Ne2 {[%clk 0:01:13.5]} 28... dxe4 {[%clk 0:00:41.6]} 29. hxg6 {[%clk
0:01:02]} 29... fxg6 {[%clk 0:00:25.7]} 30. f3 {[%clk 0:01:00.8]} 30... e3
{[%clk 0:00:18.8]} 31. g3 {[%clk 0:00:55.6]} 31... Bb8 {[%clk 0:00:12.3]} 32.
gxf4 {[%clk 0:00:49]} 32... g5 {[%clk 0:00:12.2]} 33. Kh3 {[%clk 0:00:44]} 33...
gxf4 {[%clk 0:00:11]} 34. Nd4 {[%clk 0:00:34.3]} 34... Kf6 {[%clk 0:00:10.1]}
35. Kh4 {[%clk 0:00:33.6]} 35... c5 {[%clk 0:00:10]} 36. Ne2 {[%clk 0:00:32.4]}
36... Be5 {[%clk 0:00:09.1]} 37. b4 {[%clk 0:00:23.3]} 37... cxb4 {[%clk
0:00:08]} 38. cxb4 {[%clk 0:00:23.6]} 38... Kg6 {[%clk 0:00:05.3]} 39. Rg1+
{[%clk 0:00:19.2]} 39... Kf5 {[%clk 0:00:05.2]} 40. Kh5 {[%clk 0:00:18.4]} 40...
Rxd1 {[%clk 0:00:04]} 41. Rxd1 {[%clk 0:00:16.5]} 41... Rg8 {[%clk 0:00:03.8]}
42. Rd5 {[%clk 0:00:11]} 42... Rg2 {[%clk 0:00:02.6]} 43. Nd4+ {[%clk
0:00:08.3]} 43... Kf6 {[%clk 0:00:02.9]} 44. Kh4 {[%clk 0:00:04.2]} 44... Bxd4
{[%clk 0:00:02.1]} 45. Rxd4 {[%clk 0:00:03.8]} 45... Kf5 {[%clk 0:00:02.4]} 46.
Rd5+ {[%clk 0:00:02.6]} 46... Ke6 {[%clk 0:00:02.8]} 47. Rd8 {[%clk 0:00:02]}
47... Kf6 {[%clk 0:00:02.2]} 48. Kh3 {[%clk 0:00:01.5]} 48... Rg3+ {[%clk
0:00:02.7]} 49. Kh4 {[%clk 0:00:01.5]} 49... Rxf3 {[%clk 0:00:03.6]} 50. Kg4
{[%clk 0:00:01.7]} 50... Rf2 {[%clk 0:00:03.6]} 51. Re8 {[%clk 0:00:01.5]} 51...
e2 {[%clk 0:00:04]} 0-1

[Event "*** Titled Tuesday Blitz"]
[Site "Chess.com"]
[Date "2021.02.09"]
[Round "5"]
[White "Onischuk_V"]
[Black "GM_Huschenbeth"]
[Result "0-1"]
[WhiteElo "2820"]
[BlackElo "2636"]
[TimeControl "180+1"]
[EndTime "10:58:33 PST"]
[Termination "GM_Huschenbeth won on time"]

1. e4 {[%clk 0:02:59.8]} 1... c5 {[%clk 0:02:56.4]} 2. Ne2 {[%clk 0:02:59.9]}
2... d6 {[%clk 0:02:55.1]} 3. g3 {[%clk 0:03:00]} 3... g6 {[%clk 0:02:54.6]} 4.
Bg2 {[%clk 0:03:00.1]} 4... Bg7 {[%clk 0:02:55.1]} 5. c3 {[%clk 0:03:00.5]} 5...
Nc6 {[%clk 0:02:49.6]} 6. d4 {[%clk 0:03:00.4]} 6... cxd4 {[%clk 0:02:47.2]} 7.
cxd4 {[%clk 0:03:00.3]} 7... e6 {[%clk 0:02:44]} 8. Nbc3 {[%clk 0:02:59.4]} 8...
Nge7 {[%clk 0:02:43.9]} 9. O-O {[%clk 0:02:48.4]} 9... O-O {[%clk 0:02:42.8]}
10. h3 {[%clk 0:02:22.7]} 10... Bd7 {[%clk 0:01:59.8]} 11. Bf4 {[%clk
0:02:15.9]} 11... d5 {[%clk 0:01:42.7]} 12. e5 {[%clk 0:02:04]} 12... Nf5 {[%clk
0:01:35.2]} 13. Qd2 {[%clk 0:01:58.8]} 13... Rc8 {[%clk 0:01:18.5]} 14. g4
{[%clk 0:01:55.2]} 14... Nfe7 {[%clk 0:01:11.7]} 15. Bg5 {[%clk 0:01:46]} 15...
f6 {[%clk 0:01:09.2]} 16. exf6 {[%clk 0:01:45.2]} 16... Bxf6 {[%clk 0:01:10.1]}
17. Bxf6 {[%clk 0:01:43.2]} 17... Rxf6 {[%clk 0:01:11]} 18. Qe3 {[%clk
0:01:34.6]} 18... Qc7 {[%clk 0:01:02.4]} 19. Rad1 {[%clk 0:01:17.9]} 19... Rcf8
{[%clk 0:00:57]} 20. f4 {[%clk 0:01:17.9]} 20... Nc8 {[%clk 0:00:48.6]} 21. b3
{[%clk 0:01:14]} 21... Nd6 {[%clk 0:00:41.6]} 22. Rc1 {[%clk 0:01:11]} 22... Qa5
{[%clk 0:00:40.4]} 23. Na4 {[%clk 0:01:05.6]} 23... b6 {[%clk 0:00:21.9]} 24.
Nac3 {[%clk 0:00:48.6]} 24... Qa6 {[%clk 0:00:20.4]} 25. a4 {[%clk 0:00:45.6]}
25... Qb7 {[%clk 0:00:20]} 26. Nb1 {[%clk 0:00:43.8]} 26... Nb4 {[%clk
0:00:18.5]} 27. Nd2 {[%clk 0:00:43.1]} 27... Na2 {[%clk 0:00:15.3]} 28. Rcd1
{[%clk 0:00:29.8]} 28... Nb4 {[%clk 0:00:15.7]} 29. Nf3 {[%clk 0:00:29.2]} 29...
Ne4 {[%clk 0:00:14.1]} 30. Ne5 {[%clk 0:00:27.4]} 30... Nc2 {[%clk 0:00:13]} 31.
Qd3 {[%clk 0:00:22.5]} 31... Nb4 {[%clk 0:00:12.8]} 32. Qb1 {[%clk 0:00:19.1]}
32... b5 {[%clk 0:00:10.8]} 33. a5 {[%clk 0:00:18.4]} 33... Be8 {[%clk
0:00:09.6]} 34. Bxe4 {[%clk 0:00:15.7]} 34... dxe4 {[%clk 0:00:10.5]} 35. Rc1
{[%clk 0:00:15.9]} 35... Qa6 {[%clk 0:00:09.1]} 36. Rc7 {[%clk 0:00:14.5]} 36...
Qxa5 {[%clk 0:00:08.5]} 37. Rfc1 {[%clk 0:00:14.1]} 37... Qb6 {[%clk 0:00:07]}
38. Qxe4 {[%clk 0:00:13.6]} 38... Nd5 {[%clk 0:00:06.8]} 39. Rc8 {[%clk
0:00:12.3]} 39... Nxf4 {[%clk 0:00:06.6]} 40. Nxf4 {[%clk 0:00:11]} 40... Rxf4
{[%clk 0:00:07.5]} 41. Qe3 {[%clk 0:00:09.7]} 41... Qxd4 {[%clk 0:00:04.2]} 42.
Qxd4 {[%clk 0:00:09.4]} 42... Rxd4 {[%clk 0:00:05.1]} 43. Ra8 {[%clk 0:00:09]}
43... Rd5 {[%clk 0:00:05.4]} 44. Nc6 {[%clk 0:00:05.9]} 44... Bxc6 {[%clk
0:00:04.8]} 45. Rxf8+ {[%clk 0:00:06]} 45... Kxf8 {[%clk 0:00:05.7]} 46. Rxc6
{[%clk 0:00:06.3]} 46... Ke7 {[%clk 0:00:02.9]} 47. Ra6 {[%clk 0:00:06.3]} 47...
Rd7 {[%clk 0:00:03]} 48. Kf2 {[%clk 0:00:06.5]} 48... g5 {[%clk 0:00:02.1]} 49.
Ke3 {[%clk 0:00:06.7]} 49... Kf6 {[%clk 0:00:03]} 50. Ke4 {[%clk 0:00:06.2]}
50... Rc7 {[%clk 0:00:03.2]} 51. Kd3 {[%clk 0:00:05.9]} 51... h6 {[%clk
0:00:03.8]} 52. Kd4 {[%clk 0:00:05.9]} 52... Rd7+ {[%clk 0:00:04.1]} 53. Ke4
{[%clk 0:00:06.2]} 53... Rc7 {[%clk 0:00:04.1]} 54. Kd3 {[%clk 0:00:06.3]} 54...
Ke7 {[%clk 0:00:04.2]} 55. Kd4 {[%clk 0:00:06.4]} 55... Kf7 {[%clk 0:00:04.1]}
56. Kd3 {[%clk 0:00:06.2]} 56... Kf6 {[%clk 0:00:04.3]} 57. b4 {[%clk
0:00:06.3]} 57... Rc4 {[%clk 0:00:04]} 58. Rxa7 {[%clk 0:00:06]} 58... Rxb4
{[%clk 0:00:04.5]} 59. Rh7 {[%clk 0:00:05.7]} 59... Rb3+ {[%clk 0:00:04.8]} 60.
Kd4 {[%clk 0:00:05.7]} 60... Rxh3 {[%clk 0:00:05.7]} 61. Rb7 {[%clk 0:00:04.8]}
61... Rh4 {[%clk 0:00:05.9]} 0-1

[Event "*** Titled Tuesday Blitz"]
[Site "Chess.com"]
[Date "2021.02.09"]
[Round "5"]
[White "tan275"]
[Black "dopolian"]
[Result "1-0"]
[WhiteElo "2246"]
[BlackElo "2398"]
[TimeControl "180+1"]
[EndTime "10:58:34 PST"]
[Termination "tan275 won by resignation"]

1. c4 {[%clk 0:03:00.3]} 1... Nf6 {[%clk 0:03:00.1]} 2. Nc3 {[%clk 0:02:59.2]}
2... g6 {[%clk 0:02:57.4]} 3. e4 {[%clk 0:02:50]} 3... e5 {[%clk 0:02:48]} 4.
Nf3 {[%clk 0:02:42.7]} 4... Nc6 {[%clk 0:02:45]} 5. d4 {[%clk 0:02:39.9]} 5...
exd4 {[%clk 0:02:44.6]} 6. Nxd4 {[%clk 0:02:29.6]} 6... d6 {[%clk 0:02:34.8]} 7.
Be3 {[%clk 0:02:21.2]} 7... Bg7 {[%clk 0:02:32.8]} 8. Be2 {[%clk 0:02:19.3]}
8... O-O {[%clk 0:02:29.4]} 9. O-O {[%clk 0:02:16.3]} 9... Ng4 {[%clk
0:02:08.2]} 10. Bxg4 {[%clk 0:01:59]} 10... Bxg4 {[%clk 0:02:05.3]} 11. Nxc6
{[%clk 0:01:57.5]} 11... Bxd1 {[%clk 0:01:24.2]} 12. Nxd8 {[%clk 0:01:56.4]}
12... Bxc3 {[%clk 0:01:18.1]} 13. Rfxd1 {[%clk 0:01:50.2]} 13... Bxb2 {[%clk
0:00:42]} 14. Rab1 {[%clk 0:01:49.6]} 14... Raxd8 {[%clk 0:00:34.9]} 15. Rxb2
{[%clk 0:01:49.3]} 15... b6 {[%clk 0:00:35.8]} 16. Rbd2 {[%clk 0:01:41.2]} 16...
Rde8 {[%clk 0:00:34.9]} 17. f3 {[%clk 0:01:36.6]} 17... f5 {[%clk 0:00:34.8]}
18. Bh6 {[%clk 0:01:34.3]} 18... Rf7 {[%clk 0:00:32.8]} 19. exf5 {[%clk
0:01:33.1]} 19... Rxf5 {[%clk 0:00:33.7]} 20. Kf2 {[%clk 0:01:28]} 20... Rc5
{[%clk 0:00:27.3]} 21. Rd4 {[%clk 0:01:22.9]} 21... Rce5 {[%clk 0:00:26.1]} 22.
Re4 {[%clk 0:01:00.6]} 22... Rxe4 {[%clk 0:00:25.9]} 23. fxe4 {[%clk 0:00:59.6]}
23... Rxe4 {[%clk 0:00:26.8]} 24. Re1 {[%clk 0:00:53.6]} 24... Rxc4 {[%clk
0:00:21.2]} 25. Re7 {[%clk 0:00:50.7]} 25... Rc5 {[%clk 0:00:09.3]} 26. Rg7+
{[%clk 0:00:38.8]} 26... Kh8 {[%clk 0:00:04.5]} 27. Rf7 {[%clk 0:00:37.5]} 27...
Rf5+ {[%clk 0:00:04.8]} 28. Rxf5 {[%clk 0:00:37]} 28... gxf5 {[%clk 0:00:05.7]}
29. Ke3 {[%clk 0:00:35.8]} 29... Kg8 {[%clk 0:00:04]} 30. Kd4 {[%clk 0:00:32.6]}
30... c6 {[%clk 0:00:02]} 31. Bf4 {[%clk 0:00:30.1]} 31... d5 {[%clk 0:00:02.6]}
32. Ke5 {[%clk 0:00:29.1]} 32... Kf7 {[%clk 0:00:02.5]} 33. Kd6 {[%clk 0:00:24]}
33... d4 {[%clk 0:00:03]} 34. Kxc6 {[%clk 0:00:23.7]} 34... Ke6 {[%clk
0:00:03.6]} 35. g3 {[%clk 0:00:19.7]} 35... h5 {[%clk 0:00:03.2]} 36. h4 {[%clk
0:00:16.4]} 36... a5 {[%clk 0:00:01.6]} 37. a4 {[%clk 0:00:15.7]} 37... b5
{[%clk 0:00:01.2]} 38. Kxb5 {[%clk 0:00:09.4]} 38... Kd5 {[%clk 0:00:01.3]} 39.
Kxa5 {[%clk 0:00:05]} 39... Kc5 {[%clk 0:00:01.8]} 40. Ka6 {[%clk 0:00:04.7]}
40... Kc6 {[%clk 0:00:02.2]} 41. a5 {[%clk 0:00:04.4]} 41... d3 {[%clk
0:00:02.6]} 42. Bd2 {[%clk 0:00:03.9]} 42... Kc5 {[%clk 0:00:02.1]} 43. Kb7
{[%clk 0:00:04]} 43... Kd4 {[%clk 0:00:02.3]} 44. a6 {[%clk 0:00:04.9]} 44...
Ke4 {[%clk 0:00:02.8]} 45. a7 {[%clk 0:00:05.3]} 45... Kf3 {[%clk 0:00:03.4]}
46. a8=Q {[%clk 0:00:05.7]} 46... Kxg3 {[%clk 0:00:04.3]} 47. Qa3 {[%clk
0:00:05.5]} 47... Kxh4 {[%clk 0:00:03.7]} 48. Qxd3 {[%clk 0:00:05.8]} 48... Kg4
{[%clk 0:00:04.4]} 49. Qe2+ {[%clk 0:00:05.4]} 49... Kh4 {[%clk 0:00:03.7]} 50.
Qh2+ {[%clk 0:00:05.2]} 50... Kg4 {[%clk 0:00:04.6]} 51. Qf4+ {[%clk 0:00:05.1]}
51... Kh3 {[%clk 0:00:05.5]} 52. Qxf5+ {[%clk 0:00:05.6]} 52... Kg2 {[%clk
0:00:06.3]} 53. Qg5+ {[%clk 0:00:04.9]} 53... Kf2 {[%clk 0:00:07.2]} 54. Qxh5
{[%clk 0:00:05.2]} 54... Kg2 {[%clk 0:00:06]} 55. Qg5+ {[%clk 0:00:05.1]} 55...
Kf2 {[%clk 0:00:06.9]} 56. Qf4+ {[%clk 0:00:05.3]} 56... Ke2 {[%clk 0:00:07.8]}
57. Qe3+ {[%clk 0:00:05.5]} 57... Kd1 {[%clk 0:00:08.7]} 58. Qe1+ {[%clk
0:00:05.3]} 58... Kc2 {[%clk 0:00:09.6]} 59. Bg5 {[%clk 0:00:05.1]} 59... Kd3
{[%clk 0:00:10.5]} 60. Qe3+ {[%clk 0:00:05]} 60... Kc2 {[%clk 0:00:11.4]} 61.
Kc6 {[%clk 0:00:04.7]} 61... Kb1 {[%clk 0:00:11.1]} 62. Kc5 {[%clk 0:00:05.6]}
62... Kc2 {[%clk 0:00:12]} 63. Kc4 {[%clk 0:00:06.5]} 63... Kb1 {[%clk
0:00:12.7]} 64. Kb3 {[%clk 0:00:05.7]} 1-0

[Event "*** Titled Tuesday Blitz"]
[Site "Chess.com"]
[Date "2021.02.09"]
[Round "5"]
[White "olksuna"]
[Black "erdni1993"]
[Result "1/2-1/2"]
[WhiteElo "2681"]
[BlackElo "2433"]
[TimeControl "180+1"]
[EndTime "10:58:35 PST"]
[Termination "Game drawn by repetition"]

1. e4 {[%clk 0:02:57.7]} 1... c5 {[%clk 0:03:00.1]} 2. Nf3 {[%clk 0:02:57.5]}
2... e6 {[%clk 0:03:00.6]} 3. d4 {[%clk 0:02:57.3]} 3... cxd4 {[%clk 0:03:01.5]}
4. Nxd4 {[%clk 0:02:58.1]} 4... Nc6 {[%clk 0:03:02.1]} 5. Nc3 {[%clk 0:02:57.8]}
5... Qc7 {[%clk 0:03:02.6]} 6. Be2 {[%clk 0:02:56.3]} 6... a6 {[%clk 0:03:02.5]}
7. O-O {[%clk 0:02:54.3]} 7... b5 {[%clk 0:03:02.6]} 8. Nxc6 {[%clk 0:02:42.3]}
8... Qxc6 {[%clk 0:03:03.5]} 9. Bf3 {[%clk 0:02:39.3]} 9... Bb7 {[%clk
0:03:03.3]} 10. Re1 {[%clk 0:02:36.4]} 10... Qc7 {[%clk 0:03:02.7]} 11. Nd5
{[%clk 0:02:28.1]} 11... Bxd5 {[%clk 0:02:23.4]} 12. exd5 {[%clk 0:02:29]} 12...
Rc8 {[%clk 0:02:19.2]} 13. c3 {[%clk 0:02:23.4]} 13... Nf6 {[%clk 0:02:14.6]}
14. Qb3 {[%clk 0:02:08.6]} 14... Bd6 {[%clk 0:02:07]} 15. h3 {[%clk 0:02:03.7]}
15... O-O {[%clk 0:02:04.4]} 16. a4 {[%clk 0:02:00.6]} 16... Rb8 {[%clk
0:01:49.7]} 17. dxe6 {[%clk 0:01:47.8]} 17... dxe6 {[%clk 0:01:47.6]} 18. axb5
{[%clk 0:01:47.7]} 18... axb5 {[%clk 0:01:47]} 19. Be3 {[%clk 0:01:45]} 19...
Bc5 {[%clk 0:01:42.1]} 20. Ra6 {[%clk 0:01:31.1]} 20... Bxe3 {[%clk 0:01:36.6]}
21. Rxe3 {[%clk 0:01:32]} 21... Rfd8 {[%clk 0:01:34.6]} 22. Re1 {[%clk
0:01:28.2]} 22... h6 {[%clk 0:01:24.8]} 23. g3 {[%clk 0:01:23.4]} 23... Rd2
{[%clk 0:01:23.3]} 24. Rd1 {[%clk 0:01:14.3]} 24... Rxd1+ {[%clk 0:01:18.6]} 25.
Qxd1 {[%clk 0:01:13.5]} 25... b4 {[%clk 0:01:13.3]} 26. Rc6 {[%clk 0:01:06]}
26... Qa5 {[%clk 0:01:10.5]} 27. c4 {[%clk 0:01:02.5]} 27... Rd8 {[%clk
0:01:02.6]} 28. Qe2 {[%clk 0:01:00.2]} 28... Qa1+ {[%clk 0:00:55.1]} 29. Kg2
{[%clk 0:00:57.5]} 29... Qc1 {[%clk 0:00:55.6]} 30. c5 {[%clk 0:00:38.7]} 30...
b3 {[%clk 0:00:44.5]} 31. Rd6 {[%clk 0:00:34.2]} 31... Rxd6 {[%clk 0:00:26.8]}
32. cxd6 {[%clk 0:00:33.9]} 32... Qc2 {[%clk 0:00:21.7]} 33. h4 {[%clk
0:00:23.9]} 33... Kf8 {[%clk 0:00:16]} 34. Kf1 {[%clk 0:00:22.1]} 34... Qxe2+
{[%clk 0:00:14.1]} 35. Kxe2 {[%clk 0:00:21.3]} 35... Ke8 {[%clk 0:00:14.6]} 36.
Bc6+ {[%clk 0:00:20.9]} 36... Kd8 {[%clk 0:00:14.4]} 37. Kd2 {[%clk 0:00:19.2]}
37... Ng4 {[%clk 0:00:14.2]} 38. Ke2 {[%clk 0:00:15.4]} 38... Ne5 {[%clk
0:00:13.3]} 39. Ba4 {[%clk 0:00:14.6]} 39... Nc4 {[%clk 0:00:13.1]} 40. Bxb3
{[%clk 0:00:14.5]} 40... Nxd6 {[%clk 0:00:13.6]} 41. Kd3 {[%clk 0:00:10.5]}
41... Kd7 {[%clk 0:00:13.4]} 42. Bc4 {[%clk 0:00:10.4]} 42... f6 {[%clk
0:00:11.9]} 43. b4 {[%clk 0:00:10.5]} 43... e5 {[%clk 0:00:11.7]} 44. Bd5 {[%clk
0:00:10.1]} 44... Kc7 {[%clk 0:00:11.6]} 45. h5 {[%clk 0:00:09.1]} 45... Kb6
{[%clk 0:00:11.6]} 46. Bc4 {[%clk 0:00:07.7]} 46... Kc6 {[%clk 0:00:11.6]} 47.
f3 {[%clk 0:00:06.1]} 47... Nf5 {[%clk 0:00:09.5]} 48. g4 {[%clk 0:00:05.6]}
48... Nd6 {[%clk 0:00:09.5]} 49. Kc3 {[%clk 0:00:04.8]} 49... Kb6 {[%clk
0:00:09.3]} 50. Bd3 {[%clk 0:00:05.2]} 50... Kc6 {[%clk 0:00:09.1]} 51. Be4+
{[%clk 0:00:05.7]} 51... Kb5 {[%clk 0:00:09.3]} 52. Kb3 {[%clk 0:00:05.9]} 52...
Kb6 {[%clk 0:00:08.7]} 53. Bd3 {[%clk 0:00:06.1]} 53... Kc6 {[%clk 0:00:08.6]}
54. Kc3 {[%clk 0:00:06.6]} 54... Kb6 {[%clk 0:00:08.6]} 55. Kd2 {[%clk 0:00:07]}
55... Kc6 {[%clk 0:00:08.6]} 56. Ke3 {[%clk 0:00:07.5]} 56... Kd5 {[%clk
0:00:08.8]} 57. f4 {[%clk 0:00:07.3]} 57... exf4+ {[%clk 0:00:07.4]} 58. Kxf4
{[%clk 0:00:08.2]} 58... Kd4 {[%clk 0:00:07.8]} 59. Bf1 {[%clk 0:00:06.5]} 59...
Kd5 {[%clk 0:00:07.8]} 60. b5 {[%clk 0:00:05.6]} 60... Kc5 {[%clk 0:00:07.9]}
61. Be2 {[%clk 0:00:05.9]} 61... Kb6 {[%clk 0:00:07.8]} 62. Bd3 {[%clk 0:00:04]}
62... Kc5 {[%clk 0:00:08.3]} 63. Be2 {[%clk 0:00:04.2]} 63... Kb6 {[%clk
0:00:07.4]} 64. Bf1 {[%clk 0:00:04.2]} 64... Kc5 {[%clk 0:00:07.9]} 65. Be2
{[%clk 0:00:04.6]} 1/2-1/2

[Event "*** Titled Tuesday Blitz"]
[Site "Chess.com"]
[Date "2021.02.09"]
[Round "5"]
[White "alexg2003"]
[Black "dukicz123"]
[Result "0-1"]
[WhiteElo "2384"]
[BlackElo "2553"]
[TimeControl "180+1"]
[EndTime "10:58:37 PST"]
[Termination "dukicz123 won on time"]

1. e4 {[%clk 0:02:57.9]} 1... e5 {[%clk 0:02:59.8]} 2. d4 {[%clk 0:02:55.9]}
2... exd4 {[%clk 0:03:00.7]} 3. c3 {[%clk 0:02:56]} 3... d5 {[%clk 0:03:00.6]}
4. exd5 {[%clk 0:02:53.3]} 4... Qxd5 {[%clk 0:03:01.5]} 5. cxd4 {[%clk
0:02:53.8]} 5... Nc6 {[%clk 0:03:01.9]} 6. Be3 {[%clk 0:02:51.8]} 6... Bb4+
{[%clk 0:02:39.7]} 7. Nc3 {[%clk 0:02:48.1]} 7... Nge7 {[%clk 0:02:40]} 8. a3
{[%clk 0:02:39.4]} 8... Bxc3+ {[%clk 0:02:30.7]} 9. bxc3 {[%clk 0:02:40.3]} 9...
O-O {[%clk 0:02:30.9]} 10. Ne2 {[%clk 0:02:17.9]} 10... Nf5 {[%clk 0:02:27.1]}
11. Nf4 {[%clk 0:02:10.5]} 11... Qa5 {[%clk 0:02:25.4]} 12. Bd2 {[%clk
0:02:08.8]} 12... b6 {[%clk 0:02:00.1]} 13. Be2 {[%clk 0:01:38.3]} 13... Nd6
{[%clk 0:01:52]} 14. O-O {[%clk 0:01:31.7]} 14... Bb7 {[%clk 0:01:26.9]} 15. Bd3
{[%clk 0:01:25.7]} 15... Ne7 {[%clk 0:01:14.8]} 16. c4 {[%clk 0:01:04.1]} 16...
Qg5 {[%clk 0:01:12.7]} 17. d5 {[%clk 0:00:59.2]} 17... Qf6 {[%clk 0:00:56.4]}
18. Nh5 {[%clk 0:00:57.9]} 18... Qh4 {[%clk 0:00:51.4]} 19. Ng3 {[%clk
0:00:23.9]} 19... Ng6 {[%clk 0:00:36.7]} 20. Bc3 {[%clk 0:00:22.2]} 20... Rae8
{[%clk 0:00:33.5]} 21. Re1 {[%clk 0:00:15.3]} 21... Bc8 {[%clk 0:00:33.6]} 22.
Rxe8 {[%clk 0:00:14.9]} 22... Rxe8 {[%clk 0:00:34.5]} 23. h3 {[%clk 0:00:14.6]}
23... Bd7 {[%clk 0:00:22.4]} 24. Qf1 {[%clk 0:00:14.1]} 24... Nf4 {[%clk
0:00:20.6]} 25. Re1 {[%clk 0:00:10.4]} 25... Rxe1 {[%clk 0:00:19.8]} 26. Bxe1
{[%clk 0:00:11.3]} 26... Nxd3 {[%clk 0:00:18.3]} 27. Qxd3 {[%clk 0:00:12.2]}
27... Qxc4 {[%clk 0:00:18.5]} 28. Qe3 {[%clk 0:00:12.2]} 28... Qxd5 {[%clk
0:00:17.7]} 29. Qe7 {[%clk 0:00:11.2]} 29... Qe6 {[%clk 0:00:18.1]} 30. Qd8+
{[%clk 0:00:11.4]} 30... Qe8 {[%clk 0:00:18]} 31. Qxe8+ {[%clk 0:00:11.7]} 31...
Bxe8 {[%clk 0:00:18.6]} 32. Bc3 {[%clk 0:00:12.3]} 32... Nb5 {[%clk 0:00:17.8]}
33. Bb2 {[%clk 0:00:12.4]} 33... c5 {[%clk 0:00:18.1]} 34. Nh5 {[%clk
0:00:12.9]} 34... f6 {[%clk 0:00:17.9]} 35. Nf4 {[%clk 0:00:12.6]} 35... Bf7
{[%clk 0:00:18.1]} 36. Nd3 {[%clk 0:00:12.7]} 36... Nd6 {[%clk 0:00:17.8]} 37.
a4 {[%clk 0:00:12.8]} 37... Bb3 {[%clk 0:00:15.6]} 38. a5 {[%clk 0:00:12.9]}
38... Bc2 {[%clk 0:00:13.4]} 39. Ne1 {[%clk 0:00:12.9]} 39... Be4 {[%clk
0:00:12.9]} 40. Ba3 {[%clk 0:00:13.5]} 40... Nb7 {[%clk 0:00:12.3]} 41. f3
{[%clk 0:00:13.5]} 41... Bc6 {[%clk 0:00:11.9]} 42. axb6 {[%clk 0:00:13.5]}
42... axb6 {[%clk 0:00:12.1]} 43. Nc2 {[%clk 0:00:14.1]} 43... Kf7 {[%clk
0:00:12.1]} 44. Kf2 {[%clk 0:00:14.5]} 44... Ke6 {[%clk 0:00:12.7]} 45. Ke3
{[%clk 0:00:15.3]} 45... Kd5 {[%clk 0:00:13.3]} 46. Kd2 {[%clk 0:00:16]} 46...
b5 {[%clk 0:00:13.6]} 47. Ne3+ {[%clk 0:00:16.5]} 47... Ke6 {[%clk 0:00:12.4]}
48. f4 {[%clk 0:00:16.1]} 48... b4 {[%clk 0:00:12.7]} 49. Bb2 {[%clk 0:00:15.5]}
49... Nd6 {[%clk 0:00:13.3]} 50. g4 {[%clk 0:00:15.4]} 50... Bb5 {[%clk
0:00:11.6]} 51. f5+ {[%clk 0:00:15.5]} 51... Kd7 {[%clk 0:00:10.6]} 52. g5
{[%clk 0:00:14.6]} 52... Nc4+ {[%clk 0:00:09.5]} 53. Nxc4 {[%clk 0:00:14.5]}
53... Bxc4 {[%clk 0:00:10.4]} 54. gxf6 {[%clk 0:00:15.3]} 54... gxf6 {[%clk
0:00:11.2]} 55. Bxf6 {[%clk 0:00:15.6]} 55... Kd6 {[%clk 0:00:10.7]} 56. Bb2
{[%clk 0:00:15.6]} 56... Bf7 {[%clk 0:00:10.2]} 57. h4 {[%clk 0:00:15.5]} 57...
Kd5 {[%clk 0:00:10.4]} 58. Bf6 {[%clk 0:00:13.5]} 58... Kc4 {[%clk 0:00:07.7]}
59. Be7 {[%clk 0:00:13.6]} 59... Kb5 {[%clk 0:00:07.8]} 60. Kc2 {[%clk
0:00:13.6]} 60... c4 {[%clk 0:00:08.3]} 61. Kb2 {[%clk 0:00:14]} 61... c3+
{[%clk 0:00:07.9]} 62. Kc2 {[%clk 0:00:14.5]} 62... Kc4 {[%clk 0:00:08.1]} 63.
f6 {[%clk 0:00:11.8]} 63... b3+ {[%clk 0:00:08.1]} 64. Kb1 {[%clk 0:00:11.4]}
64... Bg6+ {[%clk 0:00:08.1]} 65. Kc1 {[%clk 0:00:10.9]} 65... b2+ {[%clk
0:00:09]} 66. Kd1 {[%clk 0:00:11.5]} 66... b1=Q+ {[%clk 0:00:09.6]} 67. Ke2
{[%clk 0:00:12.4]} 67... Qe4+ {[%clk 0:00:09.4]} 68. Kf2 {[%clk 0:00:12.8]}
68... c2 {[%clk 0:00:09.8]} 0-1